Cogmind - Beta 15 @@@ ROGUE MODE // 2025.05.06 @ 19:08:08 Player: APerTAS Result: Core destroyed Performance ------------- Evolutions (2) 1000 Regions Visited (4) 800 Robots Destroyed (51) 255 Value Destroyed (1128) 1128 Prototype IDs (11) 220 Alien Tech Used (0) 0 Bonus (0) 0 TOTAL SCORE: 3403 Bonus ------- None Cogmind --------- Core Integrity 0/550 Matter 165/300 Energy 100/100 System Corruption 8% Temperature Cool (9) Movement Core (50) Location -8/Materials Parts ------- > --- POWER (1) -------- (None) > --- PROPULSION (4) --- (None) > --- UTILITY (4) ------ (None) > --- WEAPON (2) ------- (None) > --- INVENTORY (5) ---- (None) Peak State ------------ > --- POWER ------------ Improved Ion Engine > --- PROPULSION ------- Light Treads Light Treads Light Treads > --- UTILITY ---------- Improved Heat Sink Small Storage Unit Improved Sensor Array Core Shielding > --- WEAPON ----------- Heavy Assault Cannon > --- INVENTORY -------- Light Ion Engine Subdweller Power Source Light Deuterium Engine Heavy Assault Rifle Minigun Rocket Launcher Subdweller Shrapnel Launcher Shrapnel Trap [Rating: 20] Favorites ----------- Power Ion Engine Engine Ion Engine Power Core Light Nuclear Core Propulsion Light Treads Treads Light Treads Leg Aluminum Leg Wheel Compact Wheel Utility Small Storage Unit Device Structural Scanner Storage Small Storage Unit Protection Core Shielding Weapon Assault Rifle Energy Gun Small Laser Ballistic Gun Assault Rifle Ballistic Cannon Heavy Assault Cannon Launcher Grenade Launcher Special Weapon Multitool Build | -11 -10 -10 -10 -8 ------- Run | Yrd Mat Min Sub Mat Slots Evolved 4 | . . . . 4 Power . | . . . . . Propulsion 2 | . . . . 2 Utility 2 | . . . . 2 Weapon . | . . . . . Parts Attached 33 | 10 1 5 8 9 Power 6 | 2 . 2 1 1 Engine 5 | 2 . 1 1 1 Core 1 | . . 1 . . Reactor . | . . . . . Propulsion 8 | 4 . . 2 2 Treads 4 | 2 . . . 2 Leg 2 | . . . 2 . Wheel 2 | 2 . . . . Hover . | . . . . . Flight . | . . . . . Utility 7 | 2 1 . 1 3 Device 5 | 1 1 . 1 2 Storage 1 | 1 . . . . Processor . | . . . . . Hackware . | . . . . . Protection 1 | . . . . 1 Artifact . | . . . . . Weapon 12 | 2 . 3 4 3 Energy Gun 2 | . . 2 . . Energy Cannon . | . . . . . Ballistic Gun 6 | 2 . 1 1 2 Ballistic Cannon 1 | . . . . 1 Launcher 2 | . . . 2 . Special Weapon 1 | . . . 1 . Impact Weapon . | . . . . . Slashing Weapon . | . . . . . Piercing Weapon . | . . . . . Special Melee Weapon . | . . . . . Unidentified Prototypes . | . . . . . Parts Lost 9 | . . 1 3 5 Power 1 | . . . . 1 Propulsion 4 | . . . 1 3 Utility 2 | . . . 1 1 Weapon 2 | . . 1 1 . Highest Loss Streak 4 | . . 1 2 4 To Critical Strikes . | . . . . . Average Backups 6 | 3 8 7 6 6 Power 1 | . 1 1 1 2 Propulsion 2 | 2 4 3 2 . Utility 1 | . 1 2 1 . Weapon 2 | . 1 1 2 3 Tool/Special . | . . . . . Unused Backups 5 | . . 1 . 4 Power 3 | . . . . 3 Propulsion . | . . . . . Utility 1 | . . 1 . . Weapon 1 | . . . . 1 Tool/Special . | . . . . . Average Slot Usage (%) 91 | . 100 100 93 75 Engine 11 | . 14 12 14 7 Treads 18 | . 28 28 4 23 Leg 6 | . . . 17 . Device 14 | . 14 14 13 17 Storage 12 | . 14 14 14 8 Protection 1 | . . . . 7 Energy Gun 6 | . . 11 7 . Ballistic Gun 11 | . 28 16 7 3 Ballistic Cannon 1 | . . . . 6 Launcher 4 | . . . 12 1 Peak Build Rating 20 | 7 7 10 11 20 Average Rating 10 | 5 7 8 9 17 On Entrance 6 | . 7 7 8 10 Naked Turns 23 | . . . . 23 Heaviest Build 27 | 15 15 15 17 27 Greatest Support 60 | 40 40 40 40 60 Greatest Overweight (x) 1 | . . . 1 . Average Overweight (x) . | . . . . . Largest Inventory Capacity 8 | 8 8 8 8 8 Average Capacity 7 | 7 8 8 8 7 Most Carried 8 | 8 8 8 8 8 Average Carried 7 | 4 7 7 7 7 Final Capacity 8 | 8 8 8 8 5 Final Carried 8 | 8 8 8 7 . Class Distribution -------------------- 84% | Mutant 15% | Scavenger-Mutant Dominant Class ---------------- Mutant | -10/Materials Mutant | -10/Mines Mutant | -10/Subcaves Scavenger-Mutant | -8/Materials Resources | -11 -10 -10 -10 -8 ----------- Run | Yrd Mat Min Sub Mat Matter Collected 1410 | 305 214 261 231 399 Remotely . | . . . . . Salvage Created 1612 | 104 400 403 184 521 Parts 115 | 9 24 21 14 47 Haulers Intercepted 1 | . 1 . . . Recyclers Shooed 3 | 1 . 1 . 1 Parts Field Recycled . | . . . . . Retrieved Matter . | . . . . . Parts Self-Destructed . | . . . . . Prevented . | . . . . . Kills | -11 -10 -10 -10 -8 ------- Run | Yrd Mat Min Sub Mat Combat Hostiles Destroyed 28 | . 4 6 8 10 Guns 13 | . 4 6 2 1 Cannons 7 | . . . . 7 AOE 8 | . . . 6 2 Classes Destroyed 11 | 2 5 . 4 . Worker 6 | . 2 2 . 2 Builder 8 | . 2 . . 6 Tunneler 2 | 2 . . . . Hauler 1 | . 1 . . . Recycler 5 | 1 1 2 . 1 Watcher 1 | . 1 . . . Swarmer 5 | . . . 2 3 Grunt 14 | . 4 6 . 4 Sentry 4 | . . . 1 3 Artisan 1 | . . . 1 . Subdweller 5 | . . . 5 . Best Kill Streak 13 | 2 7 4 2 13 Combat Bots Only 4 | . 4 2 2 3 Max Kills in Single Turn 3 | 1 1 2 2 3 Gunslinging 1 | . . 1 . . Exploded 2 | . . . 2 2 Melee . | . . . . . Uniques/NPCs Destroyed . | . . . . . Combat | -11 -10 -10 -10 -8 -------- Run | Yrd Mat Min Sub Mat Hostile Shots Fired 228 | . 12 53 40 123 Missed 68 | . 4 13 17 34 Hits 160 | . 8 40 23 89 Projectile 160 | . 8 40 23 89 AOE 3 | . . . 3 . Critical Strikes 9 | . . 2 . 7 Part Disruptions 1 | . . . . 1 Damage Taken 2600 | . 101 520 551 1428 Core 793 | . 26 110 102 555 Absorbed by Shields . | . . . . . Redirected to Shielding 33 | . . . . 33 Regen/Repaired (Parts) 124 | . . . . 124 Core Remaining (%) 52 | 100 . . 4 . Volleys Fired 158 | 8 27 47 32 44 Largest 2 | 2 2 2 2 1 Hottest 70 | 40 40 60 70 50 Shots Fired 255 | 16 54 94 47 44 Gun 198 | 16 54 94 28 6 Cannon 38 | . . . . 38 Launcher 18 | . . . 18 . Special 1 | . . . 1 . Kinetic 193 | 16 54 55 24 44 Thermal 43 | . . 39 4 . Explosive 18 | . . . 18 . Electromagnetic 1 | . . . 1 . Robot Hit Streak 9 | 5 9 6 9 8 Robot Miss Streak 5 | 3 2 5 2 5 Penetration Max . | . . . . . Secondary Targets 2 | . 1 1 . . Max Gunslinging Chain 1 | . 1 1 . . Shots Hit Robots 128 | 10 33 36 27 22 Core Hits 78 | 4 16 19 16 23 Critical Kills 2 | . 1 1 . . Critical Parts Destroyed . | . . . . . Critical Strikes 5 | . 1 1 . 3 Destroy 2 | . 1 1 . . Blast 3 | . . . . 3 Melee Attacks . | . . . . . Impact . | . . . . . Slashing . | . . . . . Piercing . | . . . . . Sneak Attacks . | . . . . . Combat Hostiles . | . . . . . Follow-up Attacks . | . . . . . Damage Inflicted 3678 | 117 444 467 965 1685 Guns 1355 | 117 444 467 237 90 Cannons 1213 | . . . . 1213 Explosions 1046 | . . . 728 318 Melee . | . . . . . Ramming 64 | . . . . 64 Kinetic 2600 | 117 444 333 237 1469 Thermal 207 | . . 134 . 73 Explosive 728 | . . . 728 . Electromagnetic 79 | . . . . 79 Impact . | . . . . . Slashing . | . . . . . Piercing . | . . . . . Highest Corruption 8 | . . . . 8 Average Corruption 2 | . . . . 2 Corruption Purged . | . . . . . Corruption Blocked . | . . . . . Overload Shots . | . . . . . Overflow Damage 125 | . . . 21 104 Projectiles 104 | . . . . 104 Explosions 21 | . . . 21 . Melee . | . . . . . Knockbacks 8 | . . . . 8 Impact . | . . . . . Kinetic 6 | . . . . 6 Secondary 2 | . . . . 2 Self-Inflicted Damage 222 | . . . 53 169 Shots 7 | . . . 4 3 Rammed 10 | . . . . 10 Targets Rammed 10 | . . . . 10 Kicked . | . . . . . Crushed . | . . . . . Highest Temperature 162 | . 2 162 7 32 Average Temperature 85 | . 2 93 4 14 Received Heat Transfer 1191 | . 57 336 87 711 Siege Activations . | . . . . . Martial Activations . | . . . . . Shielding Activations . | . . . . . Robots Disrupted . | . . . . . Combat Hostiles . | . . . . . Robots Corrupted . | . . . . . Combat Hostiles . | . . . . . Parts Fried . | . . . . . Impact Corruptions . | . . . . . Robots Melted . | . . . . . Combat Hostiles . | . . . . . Parts Melted . | . . . . . Heat Transferred 400 | . . 300 . 100 Parts Sabotaged . | . . . . . Parts Stolen . | . . . . . Parts Stripped . | . . . . . Power Chain Reactions 1 | . . . . 1 Alert | -11 -10 -10 -10 -8 ------- Run | Yrd Mat Min Sub Mat Maximum Alert Level . | . . . . . Low Security (%) 100 | 100 100 100 . 100 Level 1 . | . . . . . Level 2 . | . . . . . Level 3 . | . . . . . Level 4 . | . . . . . Level 5 . | . . . . . High Security . | . . . . . Max Security . | . . . . . Peak Influence 178 | 5 92 55 . 178 Initial 26 | . . 26 . 20 Average 18 | . 47 10 . 25 Influence Increases 722 | 15 129 170 60 348 Destroy 0b10 Robot/C 460 | . 80 120 60 200 Destroy 0b10 Robot/NC 115 | 15 35 20 . 45 Destroy Leader 94 | . 14 30 . 50 Successful Hack 3 | . . . . 3 Disable Machine 15 | . . . . 15 Destroy Structure 35 | . . . . 35 Influence Decreases 552 | 15 60 239 20 218 Entered New Map 63 | . . 43 . 20 Time Decay 439 | 15 60 196 20 148 Lost Part 50 | . . . . 50 Squads Dispatched 2 | . . . . 2 Investigation . | . . . . . Extermination . | . . . . . Reinforcement 2 | . . . . 2 Assault . | . . . . . Garrison . | . . . . . Intercept . | . . . . . Searches Triggered . | . . . . . Construction Impeded . | . . . . . Haulers Reinforced . | . . . . . Active Scanning Responses . | . . . . . Cargo Convoy Interrupts . | . . . . . Stealth | -11 -10 -10 -10 -8 --------- Run | Yrd Mat Min Sub Mat Distress Signals 3 | . 1 . . 2 Communications Jammed . | . . . . . Distress Signals . | . . . . . Times Spotted 46 | . 7 6 13 20 Peak Tracking Total 9 | . 3 2 6 9 Tactical Retreats . | . . . . . Traps | -11 -10 -10 -10 -8 ------- Run | Yrd Mat Min Sub Mat Traps Triggered 3 | . . . 1 2 Indirectly 1 | . . . . 1 Trap Hack Attempts . | . . . . . Triggered . | . . . . . Disarmed . | . . . . . Reprogrammed . | . . . . . Reused . | . . . . . Traps Extracted . | . . . . . Installed 1 | . . . . 1 Triggered . | . . . . . Most Traps Carried 1 | . . . 1 1 Machines | -11 -10 -10 -10 -8 ---------- Run | Yrd Mat Min Sub Mat Machines Disabled 2 | . 1 . . 1 Max in Single Turn 1 | . 1 . . 1 Machines Repaired . | . . . . . Machines Dismantled . | . . . . . Machines Sabotaged . | . . . . . Overloaded Fab Kills . | . . . . . Hacking | -11 -10 -10 -10 -8 --------- Run | Yrd Mat Min Sub Mat Machines Accessed 5 | . . . 3 2 Terminals . | . . . . . Fabricators . | . . . . . Repair Stations 1 | . . . . 1 Recycling Units . | . . . . . Scanalyzers . | . . . . . Garrison Access 1 | . . . . 1 Total Hacks 16 | . . . 12 4 Successful 15 | . . . 12 3 Failed 1 | . . . . 1 Catastrophic . | . . . . . Database Lockouts . | . . . . . Manual 2 | . . . . 2 Terminals . | . . . . . Fabricators . | . . . . . Repair Stations 2 | . . . . 2 Recycling Units . | . . . . . Scanalyzers . | . . . . . Garrison Access 2 | . . . . 2 Terminal Hacks 12 | . . . 12 . Record 9 | . . . 9 . Open Door 1 | . . . 1 . Proto ID Catalog 1 | . . . 1 . Release Object 1 | . . . 1 . Fabricator Hacks . | . . . . . Repair Station Hacks 2 | . . . . 2 Scan Component 1 | . . . . 1 Repair 1 | . . . . 1 Recycling Unit Hacks . | . . . . . Scanalyzer . | . . . . . Garrison Access Hacks . | . . . . . Unauthorized Hacks 1 | . . . . 1 Terminals . | . . . . . Fabricators . | . . . . . Repair Stations . | . . . . . Recycling Units . | . . . . . Scanalyzers . | . . . . . Garrison Access 1 | . . . . 1 Reprogram 1 | . . . . 1 Data Cores Recovered . | . . . . . Used . | . . . . . Hacking Detections 1 | . . . . 1 Full Trace Events . | . . . . . Feedback Events . | . . . . . Feedback Blocked . | . . . . . Robot Schematics Acquired . | . . . . . Robots Built . | . . . . . Authchips . | . . . . . Time . | . . . . . Total Robot Build Rating . | . . . . . Part Schematics Acquired . | . . . . . Parts Built . | . . . . . Authchips . | . . . . . Time . | . . . . . Total Part Build Rating . | . . . . . Parts Repaired 1 | . . . . 1 Time 26 | . . . . 26 Parts Recycled . | . . . . . Recycled Matter . | . . . . . Retrieved Matter . | . . . . . Retrieved Components . | . . . . . Parts Scanalyzed . | . . . . . Part Schematics Acquired . | . . . . . Parts Damaged . | . . . . . Bothacking | -11 -10 -10 -10 -8 ------------ Run | Yrd Mat Min Sub Mat Used RIF Installer . | . . . . . Robots Hacked . | . . . . . Non-combat . | . . . . . Combat . | . . . . . Robot Hacks Applied . | . . . . . Relay Couplers Released . | . . . . . Fabnet Peak Effective % . | . . . . . Robots Rewired . | . . . . . Allies Hacked . | . . . . . Hacks Repelled . | . . . . . Allies | -11 -10 -10 -10 -8 -------- Run | Yrd Mat Min Sub Mat Total Allies . | . . . . . Largest Group . | . . . . . Highest-Rated Group . | . . . . . Highest-Rated Ally . | . . . . . Total Orders . | . . . . . Ally Attacks . | . . . . . Total Damage . | . . . . . Kills . | . . . . . Allies Corrupted . | . . . . . Allies Melted . | . . . . . Intel | -11 -10 -10 -10 -8 ------- Run | Yrd Mat Min Sub Mat Active Infowar (turns) 2828 | 36 191 982 975 644 Optics 172 | . . . 172 . Sensors 409 | . . . . 409 Structural 1189 | . 11 982 196 . Seismic 1058 | 36 180 . 607 235 Robot Analysis Total . | . . . . . Derelict Logs Recovered 1 | . . 1 . . Drone Launches . | . . . . . Drone Recoveries . | . . . . . Exploration | -11 -10 -10 -10 -8 ------------- Run | Yrd Mat Min Sub Mat Turns Passed 3008 | 143 191 982 1025 667 Spaces Moved 1580 | 74 66 508 629 303 Core 11 | 3 . . . 8 Treads 1004 | 46 66 508 89 295 Legs 540 | . . . 540 . Wheels 25 | 25 . . . . Hover . | . . . . . Flight . | . . . . . Fastest Speed 50 | 50 160 160 120 50 Average Speed 153 | 132 160 160 147 157 Slowest Speed 190 | 160 160 160 190 160 Overloaded Moves . | . . . . . Propulsion Burnouts . | . . . . . Robots Hopped . | . . . . . Potential Cave-ins . | . . . . . Cave-ins Triggered . | . . . . . Exploration Rate (%) 38 | 4 17 96 47 26 Regions Visited 4 Branch Regions 2 Pre-discovered Areas 2 | . . 1 1 . Known Exits Taken . | . . . . . Unknown Exits Taken 4 | 1 1 1 1 . Scrap Searched 5 | . . 2 3 . Spaces Dug . | . . . . . Terrain Destroyed 134 | . . . 98 36 Melee . | . . . . . Projectile 20 | . . . 1 19 AOE 114 | . . . 97 17 Terrain Rammed 7 | . . . . 7 Walls Destroyed . | . . . . . Machines Disabled . | . . . . . Actions | -11 -10 -10 -10 -8 --------- Run | Yrd Mat Min Sub Mat Total 1892 | 98 99 582 677 436 Wait 42 | . . 11 . 31 Move 1576 | 73 65 507 628 303 Hop . | . . . . . Pick Up 25 | 7 3 3 3 9 Fast Attach 12 | 7 . . 1 4 Attach 8 | . . 1 2 5 Detach 1 | . . . . 1 Swap 25 | 3 1 9 7 5 Drop 27 | . 3 4 3 17 Fire 158 | 8 27 47 32 44 Melee . | . . . . . Ram 16 | . . . . 16 Kick . | . . . . . Crush . | . . . . . Escape Stasis . | . . . . . Rewire . | . . . . . Trap 1 | . . . . 1 Miscellaneous 1 | . . . 1 . Route ------- -11/Scrapyard -10/Materials (discovered 2 exits: [*Mat] / [*Min]) -10/Mines (discovered 3 exits: [*Mat x2] / *Sub) -10/Subcaves (discovered 3 exits: *Mat x2 / [*Rec]) -8/Materials History --------- Turn | Location | Event 11 | -11/Scrapyard | Discovered new exit (range 16) 144 | -11/Scrapyard | Entered Materials 226 | -10/Materials | Discovered new exit (range 7) 321 | -10/Materials | Discovered new exit (range 16) 335 | -10/Materials | Entered Mines 345 | -10/Mines | Build established: Mutant 371 | -10/Mines | Discovered new exit (range 15) 380 | -10/Mines | Learned location of Zion (-6) 631 | -10/Mines | Discovered new exit (range 5) 769 | -10/Mines | Core integrity fell below 50% 1142 | -10/Mines | Received a Rocket Launcher from a helpful Derelict 1232 | -10/Mines | Discovered new exit (range 16) 1317 | -10/Mines | Entered Subcaves 1324 | -10/Subcaves | Discovered new exit (range 14) 1446 | -10/Subcaves | Ambushed by angry Subdweller bent on revenge 1694 | -10/Subcaves | Released subatomizers from SUBCON Basin 1800 | -10/Subcaves | Visited 4L-MR0's lab 1930 | -10/Subcaves | Core integrity fell below 20% 2016 | -10/Subcaves | Met a Zionite searching for "candidates" 2184 | -10/Subcaves | Discovered new exit (range 15) 2245 | -10/Subcaves | A swath of the cavern ceiling suddenly collapsed 2338 | -10/Subcaves | Discovered new exit (range 15) 2342 | -10/Subcaves | Entered Materials 2342 | -8/Materials | Evolved 4 slots: Propulsion x2, Utility x2 2493 | -8/Materials | Repaired Lgt. Treads 2727 | -8/Materials | Build established: Scavenger-Mutant 2986 | -8/Materials | Released all parts (4) 2995 | -8/Materials | Core integrity fell below 50% 3002 | -8/Materials | Core integrity fell below 20% 3009 | -8/Materials | Lost 4 parts (3n1u) 3009 | -8/Materials | Core destroyed Last Messages --------------- 03004_ U-05 Engineer lays Concrete. 03004_ Slammed into Neutrino Reactor. 03005_ K-01 Serf collects debris. 03005_ Slammed into Neutrino Reactor. 03005_ Destabilizing: System corrupted (+1). 03005_ K-01 Serf collects debris. 03006_ U-05 Engineer lays Concrete. 03006_ Slammed into Neutrino Reactor. 03006_ K-01 Serf collects debris. 03007_ Critical hit (Burn: +37). 03007_ U-05 Engineer lays Concrete. 03007_ Slammed into Neutrino Reactor. 03007_ Destabilizing: System corrupted (+2). 03007_ K-01 Serf collects debris. 03008_ Slammed into Neutrino Reactor. 03008_ Destabilizing: System corrupted (+2). 03008_ Destabilizing: System corrupted (+1). 03008_ U-05 Engineer lays Concrete. 03009_ K-01 Serf collects debris. 03009_ Slammed into Neutrino Reactor. Map ----- +----------------------------------------------------+ | ??# # ! #?????????????????????? | | ??# # * #?????????????????????? | | ??# # #"########+#######?????????????????????? | | ###+## ######## =!* #???????????????????????? | | # # # = **#???????????????????????? | | # # ! # ***#???????????????????????? | | + + # ** #???????????????????????? | | # # # #???????????????????????? | | ! # #""" ??# """ #???????????????????????? | | # #"""???# """ #???????????????????????? | | [# #""????# """ #???????????????????????? | | ![ # #"?????# #???????????????????????? | | [ # #??????##########???????????????????????? | | ###### #???????????????????????????????????????? | | ?????# #???????????????????????????????????????? | | ?????# #????????##?????????????????????????????? | | ????## ##???????#%#####????????????????????????? | | ????# #############################??????????? | | ????# [ !%==*[=k*!%= k ?????????? | | ????# ! =![==!= %!!] ?????????? | | ????# [% !!*[*[=g!u^]* ?????????? | | ????# ############k% ! ! #####?????????????? | | ????#######?????# ;;==%*! k#?????????????????? | | ??????###??????## T ;; |[ k ##????????????????? | | ???????????????# ;; *k ##????????????????? | | ???????????????## ;;]!@ ##????????????????? | | ????????????????#! ## """ ##????????????????? | | ????????????????###+### """ #?????????????????? | | ????????????????????? """ #???????????????? | | ???????????????????? +???????????????? | | ??????????????????? #???????????????? | | ?????????????????? #???????????????? | | ?????????????????############# #???????????????? | | ?????????????????????????????? #???????????????? | | ??????????????????????????????? #???????????????? | | ????????????????????????????????? #??????????????? | | ??????????????????????????????????#??????????????? | | ?????????????????????????????????????????????????? | | ?????????????????????????????????????????????????? | | ?????????????????????????????????????????????????? | | ?????????????????????????????????????????????????? | | ?????????????????????????????????????????????????? | | ?????????????????????????????????????????????????? | | ?????????????????????????????????????????????????? | | ?????????????????????????????????????????????????? | | ?????????????????????????????????????????????????? | | ?????????????????????????????????????????????????? | | ?????????????????????????????????????????????????? | | ?????????????????????????????????????????????????? | | ?????????????????????????????????????????????????? | +----------------------------------------------------+ Best States ------------- Heat Dissipation 45 Energy Generation 15 Energy Capacity 265 Matter Stores 300 Matter Capacity 300 Sight Range 21 Robot Scan Range 15 Terrain Scan Density 10 Core Shielding 20 Evasion (%) 55 Recoil Reduction 3 Item Schematics ----------------- None Robot Schematics ------------------ None Fabricated ------------ Nothing Repaired ---------- Lgt. Treads | 11% | -8/Materials Alien Tech Used ----------------- None Achievements -------------- None Challenges ------------ None Game ------ Seed CoilWardroneFacilitator Manual? 0 Play Time 00:24:48 Cumulative 21.9 hours Start 2025.05.06 @ 18:43:05 End 2025.05.06 @ 19:08:08 Sessions 1 Manual Loads 0 Difficulty Rogue Special Mode None Game No. 109 Rogue 109 Adventurer 0 Explorer 0 Win Type - Total 0 Types 0/0/0/0/0/0/0/0/0/0 Lore% 32 Gallery% 23 Achievement% 35 Wizard Run 0 Options --------- Layout 0 ASCII 0 Keyboard 0 Movement Arrows Keybinds 0 Fullscreen 2 Font 18/Terminus Map View 76x50 Zoom Use 0% Tactical HUD 1 Map Filters NONE Filters NONE Steam 1 RUN: ba68a8c0-cdb3-49c0-9476-55f795965bb3